[Event "NOR-chT Eliteserien 2018-19"]
[Site "Norway"]
[Date "2019.03.08"]
[Round "7.18"]
[White "Lindbol, Aleksander"]
[Black "Mikalsen, Harald"]
[Result "0-1"]
[ECO "C47"]
[WhiteElo "2204"]
[BlackElo "2006"]
[Annotator "NA RC"]
[PlyCount "78"]
[EventDate "2018.11.02"]
[EventType "team-tourn"]
[EventCountry "NOR"]
[SourceTitle "playchess.com"]
[Source "ChessBase"]
[SourceQuality "1"]
[TimeControl "40/5400+30:1800+30"]

{[%evp 8,62,3,0,32767,20,37,-22,16,30,40,-5,21,-23,17,32767,-9,-12,4,7,32767,32767,32767,11,0,0,32767,-17,32767,32767,18,5,0,0,15,0,32767,32767,32767,32767,-193,32767,-189,-226,-165,-170,-143,32767,32767,-169,-117,32767,-367,32767,-284,-418,-423]} 1. e4 {[%emt 0:00:00]} e5 {[%emt 0:00:00]} 2. Nc3 {[%emt 0:00:00]} Nf6 {[%emt 0:08:34]} 3. g3 {[%emt 0:00:17]} d5 {[%emt 0:01:13]} 4. exd5 {[%emt 0:01:23]} Nxd5 {[%emt 0:05:31]} 5. Bg2 {[%emt 0:00:07]} Be6 {[%emt 0:01:44]} 6. Nf3 $1 {[%emt 0:03:46]} Nc6 {[%emt 0:08:23]} 7. Qe2 {[%emt 0:09:55] C47: Scotch Four Knights and Four Knights with 4 g3} (7. O-O $14 Bd6 8. d3 Nxc3 9. bxc3 O-O 10. Ng5 Bf5 11. Rb1 Rb8 12. Ne4 Qd7 13. Nxd6 Qxd6 14. Re1 Rfe8 {½-½ (49) Karjakin,S (2756)-Leko,P (2730) Beijing 2013}) 7... Nxc3 {[%emt 0:16:40]} 8. bxc3 {[%emt 0:05:40]} Bd6 {[%emt 0:00:50]} 9. O-O {[%emt 0:03:29]} O-O {[%emt 0:00:41]} 10. d3 {[%emt 0:06:47]} Bd5 $146 {[%emt 0:06:35]} ({Predecessor:} 10... Bg4 11. Qe4 Qd7 12. Re1 Bf5 13. Qh4 Rae8 {0-1 (56) Molchanova,T (2285)-Rakitskaja,M (2165) St Petersburg 2004}) 11. Bb2 {[%emt 0:07:58]} Re8 {[%emt 0:03:14]} 12. c4 {[%emt 0:03:59]} Nd4 {[%emt 0:01:27]} 13. Nxd4 {[%emt 0:10:21]} Bxg2 {[%emt 0:04:43]} 14. Kxg2 {[%emt 0:02:06]} exd4 {[%emt 0:00:10]} 15. Qf3 {[%emt 0:07:06]} c5 {[%emt 0:03:08]} 16. Rae1 {[%emt 0:00:36]} Qb6 {[%emt 0:05:38]} 17. Rb1 {[%emt 0:06:17]} Qc7 {[%emt 0:02:36]} 18. c3 {[%emt 0:02:40]} dxc3 $1 {[%emt 0:03:26]} 19. Bxc3 {[%emt 0:00:06]} b6 {[%emt 0:01:00]} 20. Rfe1 {[%emt 0:08:19]} Rad8 {[%emt 0:00:35]} 21. Re3 {[%emt 0:01:06]} Rxe3 {[%emt 0:03:53]} 22. Qxe3 {[%emt 0:00:04]} Qc6+ {[%emt 0:00:41]} 23. Qf3 {[%emt 0:00:25]} Qxf3+ {[%emt 0:01:16]} 24. Kxf3 {[%emt 0:00:05] [#]} Bxg3 $1 {[%emt 0:02:32]} 25. Ke3 {[%emt 0:05:34]} (25. Bxg7 $17 Bxh2 26. Bb2) 25... Bxh2 {[%emt 0:00:56]} 26. f4 {[%emt 0:00:41]} f6 {[%emt 0:09:15]} 27. Rh1 {[%emt 0:02:28]} Bg3 {[%emt 0:00:06]} 28. Rg1 {[%emt 0:00:16]} Bh4 {[%emt 0:01:50]} 29. Rg4 {[%emt 0:00:16]} Re8+ {[%emt 0:01:17]} 30. Kf3 {[%emt 0:00:08] [#]} g5 $1 {[%emt 0:02:55]} 31. Rg1 {[%emt 0:04:20]} Kf7 $19 {[%emt 0:00:27]} 32. Kg4 {[%emt 0:00:29]} Re3 {[%emt 0:01:56]} 33. Rf1 {[%emt 0:02:51]} Kg6 {[%emt 0:00:58]} 34. f5+ {[%emt 0:01:51]} Kf7 {[%emt 0:00:07]} 35. Rd1 {[%emt 0:00:13]} Rg3+ {[%emt 0:00:39]} 36. Kh5 {[%emt 0:00:07]} Rf3 {[%emt 0:00:17]} 37. a4 {[%emt 0:00:43]} Rxf5 {[%emt 0:00:55]} 38. a5 {[%emt 0:00:04]} Rf4 {[%emt 0:00:24]} 39. axb6 {[%emt 0:00:34]} Bg3 {[%emt 0:00:52]} 0-1

[Event "NOR-chT Eliteserien 2018-19"]
[Site "Norway"]
[Date "2019.03.08"]
[Round "7.23"]
[White "Rygg, Andreas Gangstad"]
[Black "Holm, Kristian Stuvik"]
[Result "0-1"]
[ECO "C01"]
[WhiteElo "1869"]
[BlackElo "2468"]
[Annotator "RC"]
[PlyCount "96"]
[EventDate "2018.11.02"]
[EventType "team-tourn"]
[EventCountry "NOR"]
[SourceTitle "playchess.com"]
[Source "ChessBase"]
[SourceQuality "1"]
[TimeControl "40/5400+30:1800+30"]

1. e4 {[%emt 0:00:00]} e6 {[%emt 0:05:43]} 2. d4 {[%emt 0:03:14]} d5 {[%emt 0:00:13]} 3. exd5 {[%emt 0:00:05]} exd5 {[%emt 0:00:05]} 4. Bd3 {[%emt 0:00:03]} Nc6 {[%emt 0:00:48]} 5. c3 {[%emt 0:01:37]} Bd6 {[%emt 0:00:14]} 6. Nf3 {[%emt 0:00:29]} Bg4 {[%emt 0:00:16]} 7. O-O {[%emt 0:06:26]} Nge7 {[%emt 0:00:22]} 8. Be3 {[%emt 0:01:50]} Qd7 {[%emt 0:00:20]} 9. Nbd2 {[%emt 0:03:57]} O-O-O {[%emt 0:01:54]} 10. b4 {[%emt 0:02:59]} Nf5 {[%emt 0:00:42]} 11. Qc2 {[%emt 0:09:24]} Kb8 {[%emt 0:02:41]} 12. a4 {[%emt 0:06:18]} Rde8 {[%emt 0:05:22]} 13. Rfe1 {[%emt 0:07:51]} Nxe3 {[%emt 0:12:53]} 14. fxe3 {[%emt 0:03:15]} Re7 {[%emt 0:02:55]} 15. e4 {[%emt 0:09:26]} dxe4 {[%emt 0:01:55]} 16. Bxe4 {[%emt 0:01:44]} Rhe8 {[%emt 0:01:23]} 17. Bd3 {[%emt 0:05:22]} Rxe1+ {[%emt 0:00:32]} 18. Rxe1 {[%emt 0:00:27]} Rxe1+ {[%emt 0:01:14]} 19. Nxe1 {[%emt 0:00:04]} Qe7 {[%emt 0:02:27]} 20. Nef3 {[%emt 0:05:13]} Bxb4 {[%emt 0:01:55]} 21. Be4 {[%emt 0:10:51]} Bd6 {[%emt 0:00:52]} 22. Nc4 {[%emt 0:01:37]} Bxf3 {[%emt 0:16:15]} 23. gxf3 {[%emt 0:01:40]} Nd8 {[%emt 0:00:07]} 24. Qb2 {[%emt 0:03:11]} c6 {[%emt 0:06:56]} 25. Kh1 {[%emt 0:01:51]} Bc7 {[%emt 0:01:52]} 26. Qd2 {[%emt 0:03:51]} g6 {[%emt 0:05:45]} 27. a5 {[%emt 0:09:04]} f5 {[%emt 0:00:57]} 28. Bd3 {[%emt 0:00:06]} Ne6 {[%emt 0:04:05]} 29. Qe2 {[%emt 0:01:26]} Qf6 {[%emt 0:00:43]} 30. a6 {[%emt 0:00:44]} Nf4 {[%emt 0:01:37]} 31. Qe8+ {[%emt 0:00:46]} Qd8 {[%emt 0:00:06]} 32. Qxd8+ {[%emt 0:00:22]} Bxd8 {[%emt 0:00:01]} 33. Bf1 {[%emt 0:00:38]} b5 {[%emt 0:01:10]} 34. Ne5 {[%emt 0:00:27]} Kc7 {[%emt 0:00:02]} 35. c4 {[%emt 0:00:37]} b4 {[%emt 0:00:27]} 36. Nd3 {[%emt 0:00:16]} Nxd3 {[%emt 0:00:25]} 37. Bxd3 {[%emt 0:00:04]} Bf6 {[%emt 0:01:35]} 38. d5 {[%emt 0:00:45]} cxd5 {[%emt 0:00:04]} 39. cxd5 {[%emt 0:00:06]} Kd6 {[%emt 0:00:02]} 40. Kg2 {[%emt 0:01:15]} Kxd5 {[%emt 0:00:06]} 41. Kf2 {[%emt 0:30:06]} Kd4 {[%emt 0:30:23]} 42. Ke2 {[%emt 0:00:44]} Kc3 {[%emt 0:00:11]} 43. Bb1 {[%emt 0:00:43]} Kb2 {[%emt 0:01:38]} 44. Bd3 {[%emt 0:00:00]} b3 {[%emt 0:00:00]} 45. Kd2 {[%emt 0:00:00]} Ka1 {[%emt 0:00:00]} 46. Bc4 {[%emt 0:00:00]} b2 {[%emt 0:00:00]} 47. Bd3 {[%emt 0:00:00]} b1=Q {[%emt 0:00:00]} 48. Bxb1 {[%emt 0:00:00]} Kxb1 {[%emt 0:00:00]} 0-1

[Event "NOR-chT Eliteserien 2018-19"]
[Site "Norway"]
[Date "2019.03.08"]
[Round "7.24"]
[White "Kaasen, Tor Fredrik"]
[Black "Oye-Stromberg, Alexander"]
[Result "1-0"]
[ECO "E70"]
[WhiteElo "2409"]
[BlackElo "1873"]
[Annotator "RC"]
[PlyCount "119"]
[EventDate "2018.11.02"]
[EventType "team-tourn"]
[EventCountry "NOR"]
[SourceTitle "playchess.com"]
[Source "ChessBase"]
[SourceQuality "1"]
[TimeControl "40/5400+30:1800+30"]

1. d4 {[%emt 0:00:00]} c5 {[%emt 0:00:00]} 2. d5 {[%emt 0:01:04]} Nf6 {[%emt 0:00:17]} 3. c4 {[%emt 0:00:47]} g6 {[%emt 0:00:21]} 4. Nc3 {[%emt 0:00:07]} d6 {[%emt 0:00:05]} 5. e4 {[%emt 0:01:08]} Bg7 {[%emt 0:00:07]} 6. Bd3 {[%emt 0:00:51]} O-O {[%emt 0:00:09]} 7. Nge2 {[%emt 0:03:18]} e6 {[%emt 0:14:05]} 8. O-O {[%emt 0:01:16]} exd5 {[%emt 0:00:31]} 9. exd5 {[%emt 0:03:21]} Na6 {[%emt 0:05:56]} 10. Ng3 {[%emt 0:00:57]} Nc7 {[%emt 0:02:35]} 11. Bf4 {[%emt 0:02:32]} Ng4 {[%emt 0:08:49]} 12. Qd2 {[%emt 0:05:08]} f5 {[%emt 0:08:57]} 13. Bg5 {[%emt 0:04:31]} Bf6 {[%emt 0:00:38]} 14. Bxf6 {[%emt 0:01:14]} Qxf6 {[%emt 0:00:23]} 15. Rfe1 {[%emt 0:10:08]} Qh4 {[%emt 0:06:24]} 16. Nf1 {[%emt 0:02:18]} Ne5 {[%emt 0:09:08]} 17. b3 {[%emt 0:03:32]} Bd7 {[%emt 0:04:31]} 18. Be2 {[%emt 0:04:31]} f4 {[%emt 0:06:19]} 19. f3 {[%emt 0:10:39]} Bf5 {[%emt 0:05:19]} 20. Nd1 {[%emt 0:04:07]} Rae8 {[%emt 0:04:34]} 21. Nf2 {[%emt 0:02:53]} Re7 {[%emt 0:10:19]} 22. g3 {[%emt 0:01:13]} fxg3 {[%emt 0:02:22]} 23. hxg3 {[%emt 0:00:04]} Qf6 {[%emt 0:02:48]} 24. f4 {[%emt 0:00:50]} Nf7 {[%emt 0:06:43]} 25. Ne3 {[%emt 0:01:12]} Bc8 {[%emt 0:00:18]} 26. Bg4 {[%emt 0:01:38]} h5 {[%emt 0:00:39]} 27. Bxc8 {[%emt 0:01:19]} Rxc8 {[%emt 0:00:05]} 28. Ng2 {[%emt 0:00:22]} Rce8 {[%emt 0:00:09]} 29. Rad1 {[%emt 0:00:28]} Kg7 {[%emt 0:00:17]} 30. Rxe7 {[%emt 0:01:52]} Rxe7 {[%emt 0:00:05]} 31. Qc2 {[%emt 0:00:29]} Qf5 {[%emt 0:01:45]} 32. Qxf5 {[%emt 0:01:45]} gxf5 {[%emt 0:00:05]} 33. Kf1 {[%emt 0:00:20]} Kf6 {[%emt 0:00:11]} 34. Nh4 {[%emt 0:03:15]} b5 {[%emt 0:01:00]} 35. Nd3 {[%emt 0:01:04]} b4 {[%emt 0:00:56]} 36. Nxc5 {[%emt 0:02:38]} dxc5 {[%emt 0:00:04]} 37. d6 {[%emt 0:00:01]} Rd7 {[%emt 0:00:16]} 38. dxc7 {[%emt 0:00:05]} Rxd1+ {[%emt 0:00:05]} 39. Ke2 {[%emt 0:00:17]} Nd6 {[%emt 0:00:03]} 40. Kxd1 {[%emt 0:00:12]} Ke6 {[%emt 0:01:36]} 41. Ng6 {[%emt 0:31:37]} Kd7 {[%emt 0:04:32]} 42. Nf8+ {[%emt 0:00:00]} Kxc7 {[%emt 0:00:25]} 43. Ne6+ {[%emt 0:00:00]} Kc6 {[%emt 0:00:08]} 44. Ng7 {[%emt 0:00:00]} a5 {[%emt 0:01:19]} 45. Ke2 {[%emt 0:00:00]} Kd7 {[%emt 0:10:34]} 46. Nxh5 {[%emt 0:00:00]} Ne4 {[%emt 0:02:53]} 47. Ke3 {[%emt 0:00:00]} Nc3 {[%emt 0:05:43]} 48. Ng7 {[%emt 0:00:00]} Nxa2 {[%emt 0:01:12]} 49. Kd2 {[%emt 0:00:00]} Nc3 {[%emt 0:01:54]} 50. Nxf5 {[%emt 0:00:00]} Ke6 {[%emt 0:00:44]} 51. g4 {[%emt 0:00:00]} Ne4+ {[%emt 0:00:12]} 52. Kc2 {[%emt 0:00:00]} Nf6 {[%emt 0:01:15]} 53. Ne3 {[%emt 0:00:00]} Ne4 {[%emt 0:00:30]} 54. Nd1 {[%emt 0:00:00]} Nd6 {[%emt 0:02:59]} 55. Kd3 {[%emt 0:00:00]} Kf6 {[%emt 0:00:40]} 56. Nb2 {[%emt 0:00:00]} Ke6 {[%emt 0:00:24]} 57. Ke3 {[%emt 0:00:00]} Kf6 {[%emt 0:00:06]} 58. Na4 {[%emt 0:00:19]} Nb7 {[%emt 0:00:05]} 59. Ke4 {[%emt 0:00:06]} Ke6 {[%emt 0:00:14]} 60. f5+ {[%emt 0:00:05] Kd5+ [%emt 00:00:47]} 1-0

[Event "NOR-chT Eliteserien 2018-19"]
[Site "Norway"]
[Date "2019.03.08"]
[Round "7.26"]
[White "Nilsen, Joachim Birger"]
[Black "Tisdall, Jonathan D"]
[Result "1/2-1/2"]
[ECO "A30"]
[WhiteElo "2397"]
[BlackElo "2399"]
[Annotator "RC"]
[PlyCount "107"]
[EventDate "2018.11.02"]
[EventType "team-tourn"]
[EventCountry "NOR"]
[SourceTitle "playchess.com"]
[Source "ChessBase"]
[SourceQuality "1"]
[TimeControl "40/5400+30:1800+30"]

1. Nf3 {[%emt 0:00:00]} Nf6 {[%emt 0:00:23]} 2. c4 {[%emt 0:00:24]} c5 {[%emt 0:02:19]} 3. Nc3 {[%emt 0:00:23]} b6 {[%emt 0:01:04]} 4. g3 {[%emt 0:01:59]} Bb7 {[%emt 0:00:11]} 5. Bg2 {[%emt 0:00:15]} g6 {[%emt 0:00:16]} 6. O-O {[%emt 0:01:38]} Bg7 {[%emt 0:01:12]} 7. d4 {[%emt 0:01:46]} cxd4 {[%emt 0:00:42]} 8. Qxd4 {[%emt 0:00:11]} d6 {[%emt 0:00:54]} 9. Rd1 {[%emt 0:01:11]} Nbd7 {[%emt 0:01:01]} 10. Be3 {[%emt 0:01:51]} Rc8 {[%emt 0:03:37]} 11. Rac1 {[%emt 0:02:26]} O-O {[%emt 0:04:29]} 12. Qh4 {[%emt 0:02:46]} h5 {[%emt 0:13:16]} 13. b3 {[%emt 0:05:14]} Ng4 {[%emt 0:05:41]} 14. Bg5 {[%emt 0:08:29]} f6 {[%emt 0:09:28]} 15. Bd2 {[%emt 0:01:33]} Qe8 {[%emt 0:00:08]} 16. Qh3 {[%emt 0:03:06]} Nc5 {[%emt 0:03:42]} 17. Nd4 {[%emt 0:05:19]} f5 {[%emt 0:01:33]} 18. Be1 {[%emt 0:12:09]} Bxd4 {[%emt 0:06:12]} 19. Rxd4 {[%emt 0:00:52]} Bxg2 {[%emt 0:01:41]} 20. Qxg2 {[%emt 0:00:12]} Ne6 {[%emt 0:00:09]} 21. Rdd1 {[%emt 0:01:56]} f4 {[%emt 0:03:59]} 22. Nd5 {[%emt 0:02:37]} Kh7 {[%emt 0:03:00]} 23. f3 {[%emt 0:08:07]} Nh6 {[%emt 0:04:44]} 24. Bd2 {[%emt 0:04:03]} fxg3 {[%emt 0:04:20]} 25. hxg3 {[%emt 0:01:05]} Qf7 {[%emt 0:01:22]} 26. Bc3 {[%emt 0:05:42]} b5 {[%emt 0:06:24]} 27. cxb5 {[%emt 0:02:43]} Rc5 {[%emt 0:00:09]} 28. b6 {[%emt 0:06:03]} axb6 {[%emt 0:01:34]} 29. Nxb6 {[%emt 0:00:33]} Nf5 {[%emt 0:00:19]} 30. Bd2 {[%emt 0:02:09]} Rb5 {[%emt 0:02:54]} 31. Na4 {[%emt 0:00:58]} h4 {[%emt 0:08:17]} 32. Nc3 {[%emt 0:01:48]} Re5 {[%emt 0:00:54]} 33. gxh4 {[%emt 0:03:48]} Nxh4 {[%emt 0:00:17]} 34. Qg4 {[%emt 0:00:20]} Rh5 {[%emt 0:02:07]} 35. Kf2 {[%emt 0:04:27]} Nd4 {[%emt 0:06:37]} 36. Rh1 {[%emt 0:02:47]} Ndxf3 {[%emt 0:01:36]} 37. exf3 {[%emt 0:00:16]} Nxf3 {[%emt 0:00:01]} 38. Rxh5+ {[%emt 0:00:23]} gxh5 {[%emt 0:00:02]} 39. Qe4+ {[%emt 0:00:09]} Kh8 {[%emt 0:00:03]} 40. Ke2 {[%emt 0:01:18]} Qg7 {[%emt 0:00:33]} 41. Kd3 {[%emt 0:21:30]} Qg2 {[%emt 0:08:05]} 42. Rd1 {[%emt 0:03:05]} e5 {[%emt 0:03:00]} 43. a4 {[%emt 0:03:44]} h4 {[%emt 0:09:19]} 44. a5 {[%emt 0:02:46]} h3 {[%emt 0:00:08]} 45. a6 {[%emt 0:03:39]} d5 {[%emt 0:03:13]} 46. Qxd5 {[%emt 0:00:47]} Qg6+ {[%emt 0:00:22]} 47. Qe4 {[%emt 0:00:49]} Qxa6+ {[%emt 0:00:05]} 48. Kc2 {[%emt 0:00:17]} h2 {[%emt 0:00:38]} 49. Be3 {[%emt 0:01:07]} Qf6 {[%emt 0:01:40]} 50. b4 {[%emt 0:01:21]} Qg7 {[%emt 0:00:42]} 51. Kb3 {[%emt 0:01:43]} Qg2 {[%emt 0:00:22]} 52. b5 {[%emt 0:01:22]} h1=Q {[%emt 0:01:04]} 53. Rxh1+ {[%emt 0:00:03]} Qxh1 {[%emt 0:00:10]} 54. b6 {[%emt 0:07:52]} 1/2-1/2

[Event "NOR-chT Eliteserien 2018-19"]
[Site "Norway"]
[Date "2019.03.08"]
[Round "7.27"]
[White "Sahl, Bjarke"]
[Black "Bern, Ivar"]
[Result "1-0"]
[ECO "E21"]
[WhiteElo "2322"]
[BlackElo "2302"]
[Annotator "NA RC"]
[PlyCount "49"]
[EventDate "2018.11.02"]
[EventType "team-tourn"]
[EventCountry "NOR"]
[SourceTitle "playchess.com"]
[Source "ChessBase"]
[SourceQuality "1"]
[TimeControl "40/5400+30:1800+30"]

{[%evp 11,49,9,32767,0,3,0,-6,-8,-8,-16,1,-8,18,9,47,24,110,32767,32767,93,99,32767,32767,32767,136,32767,32767,136,427,605,474,591,32767,32767,32767,32767,32767,32767,721,954]} 1. d4 {[%emt 0:00:00]} f5 {[%emt 0:00:00]} 2. c4 {[%emt 0:01:19]} Nf6 {[%emt 0:00:06]} 3. Nc3 {[%emt 0:00:07]} e6 {[%emt 0:00:09]} 4. Nf3 {[%emt 0:01:31]} Bb4 {[%emt 0:00:33]} 5. Bd2 {[%emt 0:02:46]} b6 {[%emt 0:01:00]} 6. e3 {[%emt 0:09:18]} O-O {[%emt 0:02:59]} 7. Qc2 {[%emt 0:02:45]} Bb7 {[%emt 0:02:52]} 8. Bd3 {[%emt 0:09:50]} Bxc3 {[%emt 0:19:31] LiveBook: 8 Games} 9. Bxc3 {[%emt 0:00:20]} Ne4 {[%emt 0:00:21]} 10. O-O-O {[%emt 0:08:23] E21: Nimzo-Indian: 4 Nf3} Nxc3 {[%emt 0:10:11]} (10... d6 11. Ne1 Qe7 12. f3 Nxc3 13. Qxc3 c5 14. Nc2 Nc6 15. Be2 Rac8 16. Kb1 Rfd8 17. d5 exd5 18. cxd5 {1-0 (39) Petrosian,T (2604)-Vitiugov,N (2709) Moscow 2011}) 11. Qxc3 {[%emt 0:00:14]} Bxf3 $146 {[%emt 0:00:36]} ({Predecessor:} 11... Qf6 12. Rhg1 d6 13. Qc2 Nd7 14. Nd2 c5 15. d5 Ne5 16. e4 f4 17. f3 Qh6 {0-1 (47) Siebrecht,S (2426)-Slobodjan,R (2521) Saarbruecken 2002}) 12. gxf3 {[%emt 0:00:06]} Qf6 {[%emt 0:00:55]} 13. f4 {[%emt 0:02:59]} c5 {[%emt 0:03:21]} (13... Qh4 $14) 14. Be2 {[%emt 0:01:19]} Nc6 {[%emt 0:35:34]} 15. dxc5 {[%emt 0:08:02]} Qxc3+ {[%emt 0:01:13]} 16. bxc3 {[%emt 0:00:05]} Rfd8 {[%emt 0:00:27]} 17. Rd6 {[%emt 0:06:57]} Kf7 {[%emt 0:05:11]} 18. Rhd1 {[%emt 0:03:57]} Ke7 {[%emt 0:00:10]} 19. Bf3 {[%emt 0:03:54]} Rac8 $2 {[%emt 0:00:46]} (19... bxc5 $16 20. Bxc6 dxc6 21. Rxc6 Rac8) 20. Bxc6 {[%emt 0:08:37]} Rxc6 {[%emt 0:00:07]} 21. Rxc6 {[%emt 0:00:04]} dxc6 {[%emt 0:00:05]} 22. Rxd8 {[%emt 0:00:04]} Kxd8 {[%emt 0:00:03]} 23. cxb6 {[%emt 0:00:06]} axb6 {[%emt 0:00:05]} 24. c5 {[%emt 0:00:14]} bxc5 {[%emt 0:06:05]} 25. Kb2 $18 {[%emt 0:01:16]} 1-0

[Event "NOR-chT Eliteserien 2018-19"]
[Site "Norway"]
[Date "2019.03.08"]
[Round "7.28"]
[White "Stokke, Kjetil"]
[Black "Aulin-Jansson, Joran"]
[Result "1-0"]
[ECO "A27"]
[WhiteElo "2334"]
[BlackElo "2258"]
[Annotator "RC"]
[PlyCount "233"]
[EventDate "2018.11.02"]
[EventType "team-tourn"]
[EventCountry "NOR"]
[SourceTitle "playchess.com"]
[Source "ChessBase"]
[SourceQuality "1"]
[TimeControl "40/5400+30:1800+30"]

1. c4 {[%emt 0:00:00]} e5 {[%emt 0:00:00]} 2. Nc3 {[%emt 0:00:19]} Nc6 {[%emt 0:00:00]} 3. Nf3 {[%emt 0:00:05]} g6 {[%emt 0:00:17]} 4. d4 {[%emt 0:00:13]} exd4 {[%emt 0:00:29]} 5. Nxd4 {[%emt 0:00:07]} Bg7 {[%emt 0:00:14]} 6. Nxc6 {[%emt 0:00:18]} dxc6 {[%emt 0:00:07]} 7. Qxd8+ {[%emt 0:01:48]} Kxd8 {[%emt 0:04:19]} 8. Bg5+ {[%emt 0:01:11]} Nf6 {[%emt 0:07:16]} 9. O-O-O+ {[%emt 0:10:29]} Ke7 {[%emt 0:00:09]} 10. f3 {[%emt 0:03:54]} Be6 {[%emt 0:01:54]} 11. e4 {[%emt 0:00:24]} h6 {[%emt 0:00:09]} 12. Bh4 {[%emt 0:06:19]} g5 {[%emt 0:03:10]} 13. Bg3 {[%emt 0:00:04]} Rac8 {[%emt 0:01:39]} 14. Be2 {[%emt 0:06:10]} Nh5 {[%emt 0:09:28]} 15. Bf2 {[%emt 0:00:07]} b6 {[%emt 0:09:34]} 16. g3 {[%emt 0:00:48]} Bxc3 {[%emt 0:06:41]} 17. bxc3 {[%emt 0:01:06]} c5 {[%emt 0:00:07]} 18. h4 {[%emt 0:09:44]} g4 {[%emt 0:02:18]} 19. f4 {[%emt 0:04:13]} f5 {[%emt 0:00:07]} 20. e5 {[%emt 0:09:30]} Rcd8 {[%emt 0:05:03]} 21. Rxd8 {[%emt 0:11:29]} Rxd8 {[%emt 0:00:09]} 22. Rd1 {[%emt 0:00:03]} Rxd1+ {[%emt 0:01:20]} 23. Kxd1 {[%emt 0:00:05]} Ng7 {[%emt 0:00:07]} 24. Kd2 {[%emt 0:00:04]} Bc8 {[%emt 0:00:22]} 25. Bd1 {[%emt 0:05:48]} Ne6 {[%emt 0:00:38]} 26. a3 {[%emt 0:00:44]} Nd8 {[%emt 0:00:08]} 27. Kd3 {[%emt 0:00:11]} Be6 {[%emt 0:00:14]} 28. Bb3 {[%emt 0:00:34]} Nc6 {[%emt 0:00:14]} 29. Ba2 {[%emt 0:00:07]} Na5 {[%emt 0:00:05]} 30. Bg1 {[%emt 0:00:22]} Kd7 {[%emt 0:00:22]} 31. Bf2 {[%emt 0:00:07]} Kc6 {[%emt 0:01:41]} 32. Bg1 {[%emt 0:02:16]} Kb7 {[%emt 0:02:07]} 33. Be3 {[%emt 0:01:01]} Ka6 {[%emt 0:00:08]} 34. Bd2 {[%emt 0:01:13]} Nb7 {[%emt 0:00:27]} 35. Bb3 {[%emt 0:00:52]} Ka5 {[%emt 0:00:24]} 36. Kc2 {[%emt 0:00:31]} b5 {[%emt 0:04:50]} 37. cxb5 {[%emt 0:10:12]} c4 {[%emt 0:00:06]} 38. Ba2 {[%emt 0:00:01]} Kxb5 {[%emt 0:00:07]} 39. Be3 {[%emt 0:00:32]} a6 {[%emt 0:00:05]} 40. Kb2 {[%emt 0:01:06]} Nd8 {[%emt 0:03:31]} 41. Bb1 {[%emt 0:31:31]} Nc6 {[%emt 0:30:07]} 42. a4+ {[%emt 0:08:29]} Kxa4 {[%emt 0:10:37]} 43. Bc2+ {[%emt 0:00:11]} Ka5 {[%emt 0:00:03]} 44. Bc5 {[%emt 0:00:29]} Kb5 {[%emt 0:02:39]} 45. Bf8 {[%emt 0:00:30]} h5 {[%emt 0:00:06]} 46. Ka3 {[%emt 0:00:15]} Kb6 {[%emt 0:05:46]} 47. Ba4 {[%emt 0:00:46]} Bd7 {[%emt 0:03:03]} 48. Bc2 {[%emt 0:00:00]} Be6 {[%emt 0:00:00]} 49. Ba4 {[%emt 0:00:00]} a5 {[%emt 0:00:00]} 50. Kb2 {[%emt 0:00:00]} Bd7 {[%emt 0:00:00]} 51. Ka3 {[%emt 0:00:00]} Be6 {[%emt 0:00:00]} 52. Kb2 {[%emt 0:00:00]} Bf7 {[%emt 0:00:00]} 53. Bc2 {[%emt 0:00:00]} Be6 {[%emt 0:00:00]} 54. Ba4 {[%emt 0:00:00]} Kb7 {[%emt 0:00:00]} 55. Bc5 {[%emt 0:00:00]} Bd7 {[%emt 0:00:00]} 56. Ka3 {[%emt 0:00:00]} Nb8 {[%emt 0:00:00]} 57. e6 {[%emt 0:00:00]} Bxe6 {[%emt 0:10:16]} 58. Be8 {[%emt 0:00:00]} Nd7 {[%emt 0:00:06]} 59. Be7 {[%emt 0:00:00]} Nb6 {[%emt 0:01:49]} 60. Bf6 {[%emt 0:06:57]} Nd5 {[%emt 0:00:24]} 61. Be5 {[%emt 0:00:22]} Ne3 {[%emt 0:02:34]} 62. Bxh5 {[%emt 0:00:11]} Nf1 {[%emt 0:00:05]} 63. Bg6 {[%emt 0:00:34]} Nxg3 {[%emt 0:00:06]} 64. h5 {[%emt 0:00:14]} Ne2 {[%emt 0:00:16]} 65. h6 {[%emt 0:00:58]} g3 {[%emt 0:00:06]} 66. Bh5 {[%emt 0:00:10]} g2 {[%emt 0:06:59]} 67. Bf3+ {[%emt 0:00:06]} c6 {[%emt 0:00:07]} 68. Bxg2 {[%emt 0:00:05]} Bg8 {[%emt 0:00:05]} 69. Bf1 {[%emt 0:00:57]} Ng3 {[%emt 0:00:29]} 70. Bxc4 {[%emt 0:00:33]} Bh7 {[%emt 0:00:06]} 71. Ka4 {[%emt 0:01:42]} Kb6 {[%emt 0:01:01]} 72. Bd4+ {[%emt 0:00:09]} c5 {[%emt 0:00:07]} 73. Be5 {[%emt 0:00:53]} Ne4 {[%emt 0:00:41]} 74. Bd5 {[%emt 0:00:45]} Ka6 {[%emt 0:00:36]} 75. c4 {[%emt 0:01:14]} Kb6 {[%emt 0:00:53]} 76. Be6 {[%emt 0:00:11]} Ka6 {[%emt 0:00:40]} 77. Bd7 {[%emt 0:00:36]} Kb6 {[%emt 0:00:28]} 78. Bb5 {[%emt 0:00:29]} Bg6 {[%emt 0:00:07]} 79. Kb3 {[%emt 0:01:07]} Bh7 {[%emt 0:04:19]} 80. Ba4 {[%emt 0:01:14]} Bg8 {[%emt 0:01:25]} 81. Bb5 {[%emt 0:01:32]} Bh7 {[%emt 0:00:06]} 82. Bd7 {[%emt 0:00:11]} Kb7 {[%emt 0:00:10]} 83. Bg7 {[%emt 0:00:26]} Kc7 {[%emt 0:00:19]} 84. Bb5 {[%emt 0:00:40]} Kb6 {[%emt 0:00:53]} 85. Bf8 {[%emt 0:00:24]} Bg6 {[%emt 0:01:29]} 86. Be7 {[%emt 0:00:07]} Nf2 {[%emt 0:00:20]} 87. Bd8+ {[%emt 0:00:46]} Kb7 {[%emt 0:00:02]} 88. Be8 {[%emt 0:00:54]} Bh7 {[%emt 0:00:04]} 89. Ka4 {[%emt 0:00:09]} Nh3 {[%emt 0:00:39]} 90. Bg5 {[%emt 0:00:50]} Ka6 {[%emt 0:00:06]} 91. Kb3 {[%emt 0:00:27]} Kb6 {[%emt 0:00:43]} 92. Kc3 {[%emt 0:00:12]} Nf2 {[%emt 0:00:51]} 93. Bd8+ {[%emt 0:00:25]} Ka6 {[%emt 0:00:15]} 94. Bb5+ {[%emt 0:00:41]} Kb7 {[%emt 0:00:02]} 95. Kd2 {[%emt 0:00:34]} Kc8 {[%emt 0:00:10]} 96. Bxa5 {[%emt 0:00:57]} Ng4 {[%emt 0:01:03]} 97. Bb6 {[%emt 0:00:06]} Nxh6 {[%emt 0:00:03]} 98. Bxc5 {[%emt 0:00:04]} Kc7 {[%emt 0:01:53]} 99. Ke3 {[%emt 0:00:24]} Ng4+ {[%emt 0:00:14]} 100. Kd4 {[%emt 0:00:03]} Bg8 {[%emt 0:00:05]} 101. Be7 {[%emt 0:00:28]} Be6 {[%emt 0:00:24]} 102. c5 {[%emt 0:00:17]} Bc8 {[%emt 0:00:28]} 103. Bd6+ {[%emt 0:00:13]} Kb7 {[%emt 0:00:24]} 104. Ba4 {[%emt 0:02:19]} Ka6 {[%emt 0:01:16]} 105. Kd5 {[%emt 0:00:56]} Nf6+ {[%emt 0:00:46]} 106. Ke5 {[%emt 0:01:01]} Ng4+ {[%emt 0:00:05]} 107. Kd4 {[%emt 0:00:07]} Ka5 {[%emt 0:00:17]} 108. Bc6 {[%emt 0:00:36]} Ka6 {[%emt 0:00:05]} 109. Be5 {[%emt 0:00:06]} Be6 {[%emt 0:00:29]} 110. Bd5 {[%emt 0:00:35]} Bc8 {[%emt 0:00:14]} 111. Bf7 {[%emt 0:00:57]} Bd7 {[%emt 0:00:26]} 112. Kd5 {[%emt 0:00:57]} Kb5 {[%emt 0:02:59]} 113. Kd6 {[%emt 0:00:11]} Bc8 {[%emt 0:00:00]} 114. Be8+ {[%emt 0:00:23]} Kb4 {[%emt 0:02:27]} 115. c6 {[%emt 0:00:01]} Ne3 {[%emt 0:00:03]} 116. Bd7 {[%emt 0:02:14]} Nc4+ {[%emt 0:00:02]} 117. Kc7 {[%emt 0:00:37]} 1-0